bitfinex-derivatives/quotes_SOLF0:USTF0_20250613
["timestamp","ask_amount","ask_price","bid_price","bid_amount"]
[1749844414687,0.0442575,144.97,144.92,36.4]
[1749844415182,6.8963,144.94,144.92,36.4]
[1749844415580,0.0442575,144.97,144.92,43.2969]
[1749844415981,0.0442575,144.97,144.92,36.4]
[1749844417879,0.0442575,144.97,144.92,47.45879168]
[1749844418284,0.0442575,144.97,144.95,6.8955]
[1749844419480,0.0442575,144.97,144.92,47.45879168]
[1749844420087,0.0442575,144.97,144.95,6.8954]
[1749844420386,0.0442575,144.97,144.92,47.45879168]
[1749844420585,0.0442575,144.97,144.96,6.8953]
[1749844420787,0.0442575,144.97,144.92,47.45879168]
[1749844420992,0.0442575,144.97,144.93,6.8965]
[1749844421479,6.8955,144.96,144.93,6.8965]
[1749844421980,11.05879168,144.95,144.86,36.42]
[1749844422187,6.94758492,144.92,144.86,36.42]
[1749844422391,6.94758492,144.92,144.88,6.8986]
[1749844422577,0.05008492,144.92,144.88,6.8986]
[1749844422777,0.05008492,144.92,144.86,36.42]
[1749844423093,0.05008492,144.92,144.89,11.05879168]
[1749844423288,0.05008492,144.92,144.86,36.42]
[1749844423581,0.05008492,144.92,144.87,11.05879168]
[1749844424786,0.05008492,144.92,144.86,36.42]
[1749844426087,0.05008492,144.92,144.87,11.05879168]
[1749844426291,0.05008492,144.92,144.89,11.05879168]
[1749844426490,0.05008492,144.92,144.9,36.42]
[1749844426691,0.05008492,144.92,144.91,6.8977]
[1749844428093,2.1764,144.96,144.94,6.896]
[1749844428293,2.1764,144.96,144.9,43.88594522]
[1749844428592,9.072,144.96,144.93,6.8964]
[1749844428792,6.8956,144.96,144.93,6.8964]
[1749844428985,6.94741012,144.96,144.93,6.94196473]
[1749844430297,6.94741012,144.96,144.94,6.8962]
[1749844431400,6.94741012,144.96,144.93,6.94206473]
[1749844432192,6.94741012,144.96,144.94,6.8962]
[1749844433394,0.05181012,144.96,144.93,0.04556473]
[1749844433898,0.05181012,144.96,144.95,6.8958]
[1749844435199,0.05181012,144.96,144.93,0.04556473]
[1749844435603,6.8962,144.94,144.93,0.04556473]
[1749844440205,6.896,144.95,144.93,0.04556473]
[1749844440414,0.05181012,144.96,144.93,0.04556473]
[1749844441413,0.05181012,144.96,144.95,6.8958]
[1749844442115,0.05181012,144.96,144.95,17.95550521]
[1749844442613,2.314,144.99,144.98,6.8943]
[1749844442816,4.5014,145.01,144.98,43.3143]
[1749844443016,2.3105,145.01,144.99,6.8938]
[1749844443211,2.354,145.05,144.98,36.42]
[1749844443418,4.5932,145.05,144.98,36.42]
[1749844443608,0.04596665,145.03,145.0,0.04999382]
[1749844444313,0.04596665,145.03,145.02,6.8924]
[1749844444617,0.04596665,145.03,145.02,43.3124]
[1749844445924,2.2113,145.06,145.05,6.891]
[1749844446121,2.2392,145.08,145.04,11.05970521]
[1749844446417,9.1896,145.1,145.06,6.8901]
[1749844446625,2.3007,145.1,145.06,6.8901]
[1749844446804,0.04816494,145.09,145.07,0.04997928]
[1749844448420,6.93736494,145.09,145.07,0.04997928]
[1749844448817,0.04816494,145.09,145.07,6.93997928]
[1749844449217,0.04816494,145.09,145.07,0.04997928]
[1749844449921,0.04816494,145.09,145.07,6.93997928]
[1749844450323,0.04816494,145.09,145.07,0.04997928]
[1749844451422,6.8896,145.08,145.07,0.04997928]
[1749844451923,6.93746494,145.09,145.07,0.04997928]
[1749844452717,6.8896,145.08,145.07,0.04997928]
[1749844455727,6.93746494,145.09,145.07,0.04997928]
[1749844456124,0.04816494,145.09,145.07,6.93997928]
[1749844456429,0.04816494,145.09,145.07,36.44997928]
[1749844458428,0.04816494,145.09,145.07,0.04997928]
[1749844458618,6.8896,145.08,145.07,0.04997928]
[1749844459019,0.04816494,145.09,145.07,0.04997928]
[1749844459220,6.93766494,145.09,145.07,0.04997928]
[1749844459529,0.04816494,145.09,145.07,0.04997928]
[1749844460421,6.8896,145.08,145.07,0.04997928]
[1749844464233,54.32930521,145.08,145.07,7.928e-05]
[1749844464432,54.32930521,145.08,145.01,2.3933]
[1749844464433,6.8922,145.03,145.01,2.3933]
[1749844464736,11.05970521,145.06,145.01,2.3933]
[1749844465129,6.8924,145.02,145.01,2.3933]
[1749844465435,0.04672934,145.03,145.01,2.3933]
[1749844465639,11.05970521,145.06,145.01,2.3933]
[1749844465640,11.05970521,145.1,145.01,2.3933]
[1749844465937,42.77361836,145.11,145.01,2.3933]
[1749844466635,0.05222959,145.07,145.05,0.05260289]
[1749844466839,42.77361836,145.11,145.05,0.05260289]
[1749844467632,6.8896,145.09,145.05,0.05260289]
[1749844467831,6.39361836,145.11,145.06,11.05970521]
[1749844468028,6.39361836,145.11,145.06,13.43170521]
[1749844468232,6.8889,145.1,145.06,13.43170521]
[1749844468438,6.39361836,145.11,145.06,13.43170521]
[1749844468638,6.8896,145.09,145.06,2.372]
[1749844468932,6.8896,145.09,145.05,0.05260289]
[1749844468933,0.05107073,145.09,145.05,0.05260289]
[1749844469340,6.8905,145.06,145.05,0.05260289]
[1749844475347,0.05107073,145.09,145.05,0.05260289]
[1749844475948,6.8899,145.08,145.05,6.94340289]
[1749844476148,0.05107073,145.09,145.05,0.05260289]
[1749844477444,6.8903,145.07,145.05,0.05260289]
[1749844478043,6.8905,145.06,145.05,0.05260289]
[1749844478550,6.8902,145.07,145.05,0.05260289]
[1749844479249,6.8905,145.06,145.05,0.05260289]
[1749844479650,17.95020521,145.06,145.05,2.89e-06]
[1749844480239,0.05107073,145.09,145.05,2.89e-06]
[1749844480848,6.8905,145.06,145.05,2.89e-06]
[1749844481047,0.05107073,145.09,145.05,2.89e-06]
[1749844481651,6.8905,145.06,145.05,2.89e-06]
[1749844484061,12.3794471,145.06,145.05,2.89e-06]
[1749844487253,6.8905,145.06,145.05,2.89e-06]
[1749844487757,12.36938019,145.06,145.05,2.89e-06]
[1749844488659,6.8905,145.06,145.05,2.89e-06]
[1749844490258,0.05107073,145.09,145.05,2.89e-06]
[1749844490465,0.05107073,145.09,145.05,43.83645479]
[1749844490666,6.39361836,145.11,145.06,4.7105]
[1749844490861,5.48292437,145.1,145.06,4.7105]
[1749844491060,6.39361836,145.11,145.06,4.7105]
[1749844491862,6.93705177,145.1,145.06,11.6008]
[1749844492163,0.04805177,145.1,145.06,4.7105]
[1749844492356,7.45083747,145.09,145.05,36.38000289]
[1749844492654,7.45083747,145.09,145.05,2.89e-06]
[1749844492864,6.8905,145.06,145.05,2.89e-06]
[1749844493255,0.04778459,145.07,145.05,6.89100289]
[1749844493456,5.52891988,145.07,145.05,6.89100289]
[1749844493761,0.04778459,145.07,145.05,2.89e-06]
[1749844494260,6.8905,145.06,145.05,2.89e-06]
[1749844495762,6.93808459,145.07,145.05,2.89e-06]
[1749844496263,0.04778459,145.07,145.05,2.89e-06]
[1749844496462,6.8905,145.06,145.05,2.89e-06]
[1749844497767,6.93808459,145.07,145.05,2.89e-06]
[1749844497970,0.04778459,145.07,145.05,2.89e-06]
[1749844498763,0.04778459,145.07,145.06,47.42528578]
[1749844498957,6.39361836,145.11,145.09,6.8889]
[1749844499261,0.41121836,145.11,145.08,11.04528578]
[1749844499561,0.41121836,145.11,145.07,13.34577042]
[1749844499754,0.41121836,145.11,145.06,2.3623]
[1749844499959,0.05155386,145.1,145.07,0.05249476]
[1749844500156,6.8896,145.08,145.07,0.05249476]
[1749844500355,5.4873443,145.08,144.96,36.38]
[1749844500663,5.4873443,145.07,144.98,11.04989157]
[1749844500865,5.4873443,145.06,144.98,11.04989157]
[1749844501164,11.04989157,145.09,144.98,11.04989157]
[1749844501367,0.04354651,145.03,145.01,0.04995896]
[1749844501567,0.04981597,145.03,145.01,36.42924772]
[1749844501768,0.04981597,145.03,145.02,6.8924]
[1749844503866,36.38,145.1,145.02,17.94989157]
[1749844504062,6.8897,145.08,145.04,11.04989157]
[1749844504367,6.8897,145.08,145.02,11.04989157]
[1749844504667,6.8897,145.08,145.05,6.8909]
[1749844504864,0.05310624,145.06,145.05,6.8909]
[1749844505062,0.04548067,145.07,145.05,6.8906]
[1749844505461,0.04548067,145.07,145.04,0.05252681]
[1749844505669,0.04548067,145.07,145.06,6.8905]
[1749844506163,0.04548067,145.07,145.04,0.05252681]
[1749844506970,6.891,145.05,145.04,0.05252681]
[1749844509069,11.04025084,145.05,144.99,36.5]
[1749844509463,4.7835099,145.04,144.99,36.5]
[1749844509772,6.8927,145.02,144.99,43.3938]
[1749844509965,0.04952569,145.02,144.99,36.54398342]
[1749844510269,0.04952569,145.02,145.0,6.8931]
[1749844511570,6.94202569,145.02,145.0,6.8931]
[1749844512369,6.893,145.01,144.99,43.43748342]
[1749844512571,0.04952569,145.02,144.99,36.54398342]
[1749844512967,0.04952569,145.02,144.99,43.43768342]
[1749844513263,6.8932,145.01,144.99,36.54398342]
[1749844513774,0.04952569,145.02,144.99,36.54398342]
[1749844513967,0.04952569,145.02,145.01,6.8929]
[1749844514269,0.04952569,145.02,144.99,36.54398342]
[1749844515268,0.04952569,145.02,145.01,6.8929]
[1749844515765,0.04952569,145.02,144.99,47.58423426]
[1749844515766,0.04952569,145.02,144.99,36.54398342]
[1749844516669,0.04952569,145.02,145.0,6.8934]
[1749844516966,0.04952569,145.02,144.99,36.54398342]
[1749844517174,0.04952569,145.02,145.01,6.8929]
[1749844518870,4.592,145.08,145.01,6.8929]
[1749844518871,2.1754,145.1,145.05,6.8905]
[1749844519069,12.3672355,145.09,145.04,47.56025084]
[1749844519272,0.41121836,145.11,145.06,11.04025084]
[1749844519463,6.8904,145.07,145.04,36.52]
[1749844519669,0.41121836,145.11,145.04,36.52]
[1749844519973,6.8905,145.07,145.06,0.05127876]
[1749844520173,0.04564435,145.09,145.06,0.05127876]
[1749844520566,6.8899,145.08,145.06,0.05127876]
[1749844520864,0.04564435,145.09,145.06,0.05127876]
[1749844521060,6.8899,145.08,145.06,0.05127876]
[1749844521273,0.04564435,145.09,145.06,0.05127876]
[1749844521474,5.47323653,145.08,145.06,0.05127876]
[1749844521668,5.47325299,145.07,145.04,36.52]
[1749844521869,2.2486,145.08,145.01,36.52]
[1749844522071,6.8913,145.05,145.02,6.8922]
[1749844522272,2.2486,145.08,145.01,36.52]
[1749844522570,10.22323792,145.07,145.01,36.52]
[1749844522778,21.31149852,145.06,145.03,0.04372352]
[1749844523073,7.71249543,145.05,145.03,0.05019164]
[1749844523269,5.47049543,145.04,145.03,0.05019164]
[1749844523471,2.242,145.05,145.03,0.05019164]
[1749844523676,5.46838717,145.04,144.98,36.52]
[1749844523872,6.8927,145.02,145.0,6.8934]
[1749844524075,2.242,145.05,144.98,36.52]
[1749844524274,6.8922,145.03,145.0,6.8931]
[1749844524575,0.05034306,145.03,145.0,0.05012868]
[1749844524976,0.05034306,145.03,145.01,6.8925]
[1749844525367,0.05034306,145.03,145.0,0.05012868]
[1749844525569,0.05034306,145.03,145.01,6.8926]
[1749844525765,0.05034306,145.03,145.0,0.05012868]
[1749844525968,0.05034306,145.03,145.0,11.09037952]
[1749844526164,0.05034306,145.03,145.02,6.8924]
[1749844526368,0.05034306,145.03,145.0,11.09037952]
[1749844526765,0.05034306,145.03,145.0,0.05012868]
[1749844527471,6.8929,145.01,145.0,0.05012868]
[1749844528477,11.0905939,145.03,144.95,433.42]
[1749844528673,5.46891301,145.02,144.95,433.42]
[1749844528866,6.8935,145.0,144.95,433.42]
[1749844529071,47.56025084,145.05,144.95,433.42]
[1749844529375,6.94511955,145.01,144.99,0.05010794]
[1749844529577,0.05221955,145.01,144.99,0.05010794]
[1749844530276,0.05221955,145.01,144.99,6.94370794]
[1749844530476,6.94521955,145.01,144.99,6.94370794]
[1749844530673,6.94521955,145.01,144.99,0.05010794]
[1749844530874,0.05221955,145.01,145.0,6.8934]
[1749844531275,0.05221955,145.01,145.0,17.93365084]
[1749844532483,0.05221955,145.01,144.99,43.46380794]
[1749844532682,0.05221955,145.01,144.99,36.57010794]
[1749844533081,0.05221955,145.01,144.99,43.46390794]
[1749844533582,0.05221955,145.01,144.99,0.05010794]
[1749844533980,6.8934,145.0,144.99,0.05010794]
[1749844534684,6.94531955,145.01,144.99,0.05010794]
[1749844534879,0.05221955,145.01,144.99,0.05010794]
[1749844535078,6.94551955,145.01,144.99,0.05010794]
[1749844535280,0.05221955,145.01,144.99,0.05010794]
[1749844535574,6.8934,145.0,144.99,0.05010794]
[1749844538483,6.8946,144.98,144.96,36.52]
[1749844538882,6.8942,144.99,144.96,43.415]
[1749844539377,6.8942,144.99,144.96,43.45984401]
[1749844539378,6.94715299,144.99,144.96,43.45984401]
[1749844539680,6.94715299,144.99,144.97,6.8947]
[1749844539885,0.05295299,144.99,144.96,36.56484401]
[1749844540682,0.05295299,144.99,144.96,43.46004401]
[1749844541381,6.8946,144.98,144.96,36.56484401]
[1749844542188,6.8948,144.97,144.96,0.04484401]
[1749844542385,11.09320383,144.99,144.93,36.46]
[1749844542985,6.8958,144.95,144.93,36.46]
[1749844543286,6.8962,144.94,144.93,36.50330966]
[1749844544384,6.94646865,144.95,144.93,36.50330966]
[1749844544584,0.05046865,144.95,144.93,36.50330966]
[1749844544889,6.8962,144.94,144.93,36.50330966]
[1749844545185,6.8962,144.94,144.93,0.04330966]
[1749844545791,0.05046865,144.95,144.93,0.04330966]
[1749844546180,0.05046865,144.95,144.94,36.48]
[1749844546779,0.05046865,144.95,144.94,43.3762]
[1749844546979,2.2071,145.02,144.94,36.48]
[1749844547184,2.2071,145.02,144.95,11.04025084]
[1749844547579,2.2071,145.02,144.94,36.48]
[1749844547780,2.2071,145.02,144.94,47.52025084]
[1749844547975,6.93929913,144.99,144.97,0.04754056]
[1749844548687,0.04519913,144.99,144.97,0.04754056]
[1749844549186,6.8943,144.98,144.97,0.04754056]
[1749844550686,6.93919913,144.99,144.97,0.04754056]
[1749844550888,0.04519913,144.99,144.97,0.04754056]
[1749844551091,0.04519913,144.99,144.98,6.8943]
[1749844551289,0.04519913,144.99,144.97,0.04754056]
[1749844551992,0.04519913,144.99,144.97,6.94204056]
[1749844552792,0.04519913,144.99,144.98,6.8943]
[1749844553295,0.04519913,144.99,144.97,0.04754056]
[1749844554094,0.04519913,144.99,144.97,6.94214056]
[1749844555597,6.93919913,144.99,144.97,0.04754056]
[1749844556601,6.8943,144.98,144.97,0.04754056]
[1749844557493,0.04519913,144.99,144.97,0.04754056]
[1749844558205,0.04519913,144.99,144.97,6.94224056]
[1749844558506,6.8943,144.98,144.97,0.04754056]
[1749844559505,0.04519913,144.99,144.97,0.04754056]
[1749844559506,6.93919913,144.99,144.97,0.04754056]
[1749844559700,0.04519913,144.99,144.97,0.04754056]
[1749844560097,6.8943,144.98,144.97,0.04754056]
[1749844562306,0.04519913,144.99,144.97,0.04754056]
[1749844562906,6.8943,144.98,144.97,0.04754056]
[1749844563107,0.04519913,144.99,144.97,0.04754056]
[1749844563310,0.04519913,144.99,144.98,6.8943]
[1749844564700,0.04519913,144.99,144.98,43.3743]
[1749844564898,0.04519913,144.99,144.98,54.43057876]
[1749844565413,0.04519913,144.99,144.97,0.04754056]
[1749844566106,6.8943,144.98,144.97,0.04754056]
[1749844566610,0.04519913,144.99,144.95,36.38]
[1749844566910,0.04519913,144.99,144.92,36.38]
[1749844567097,11.04843362,144.98,144.92,36.38]
[1749844567302,2.3939,144.97,144.92,36.38]
[1749844567714,0.04694081,144.96,144.93,0.04623775]
[1749844568307,0.04694081,144.96,144.94,6.8962]
[1749844568502,0.04694081,144.96,144.95,11.05780572]
[1749844568914,0.04694081,144.96,144.95,17.95360572]
[1749844572602,0.04694081,144.96,144.93,47.48079037]
[1749844572807,0.04694081,144.96,144.93,36.42623775]
[1749844573216,6.94264081,144.96,144.93,43.32293775]
[1749844573515,0.04694081,144.96,144.93,36.42623775]
[1749844574815,0.04694081,144.96,144.95,6.8958]
[1749844575113,0.04694081,144.96,144.93,36.42623775]
[1749844575907,0.04694081,144.96,144.94,6.896]
[1749844576313,0.04694081,144.96,144.93,36.42623775]
[1749844576514,0.04694081,144.96,144.94,6.8963]
[1749844576713,0.04694081,144.96,144.93,36.42623775]
[1749844578716,6.94254081,144.96,144.93,43.32273775]
[1749844579415,0.04694081,144.96,144.94,6.8962]
[1749844580114,6.94234081,144.96,144.93,43.32273775]
[1749844580311,0.04694081,144.96,144.93,36.42623775]
[1749844580618,0.04694081,144.96,144.95,6.8958]
[1749844581609,0.04694081,144.96,144.94,6.896]
[1749844582210,0.04694081,144.96,144.95,6.8958]
[1749844589222,0.04694081,144.96,144.93,43.32283775]
[1749844589421,0.04694081,144.96,144.93,36.42623775]
[1749844590521,0.04694081,144.96,144.94,6.8959]
[1749844590716,0.04694081,144.96,144.93,36.42623775]
[1749844592220,0.04694081,144.96,144.94,7.46407502]
[1749844592823,0.04694081,144.96,144.95,6.8958]
[1749844593024,2.2743,145.02,144.94,7.46407502]
[1749844593227,5.52873085,145.01,144.93,36.38]
[1749844593527,2.3369,145.05,144.99,7.46407502]
[1749844593725,5.53026536,145.04,145.01,7.46407502]
[1749844593925,5.53026536,145.03,145.01,7.51225638]
[1749844594128,0.04845527,145.04,145.01,7.51225638]
[1749844595323,0.04845527,145.04,145.01,0.04818136]
[1749844595530,0.04845527,145.04,145.01,11.09396955]
[1749844595734,0.04845527,145.04,145.02,6.8925]
[1749844596226,0.04845527,145.04,145.03,6.892]
[1749844597024,5.52213317,145.07,145.06,6.8906]
[1749844597227,4.7176,145.1,145.06,6.8906]
[1749844597532,5.51883866,145.09,145.06,6.8906]
[1749844597727,12.40823866,145.09,145.06,6.8906]
[1749844598034,0.04955216,145.09,145.06,0.0473829]
[1749844598426,6.93895216,145.09,145.06,0.0473829]
[1749844599328,0.04955216,145.09,145.06,0.0473829]
[1749844599533,6.8897,145.08,145.06,0.0473829]
[1749844599729,0.04955216,145.09,145.06,0.0473829]
[1749844600230,6.93895216,145.09,145.06,0.0473829]
[1749844600532,0.04955216,145.09,145.06,0.0473829]
[1749844600932,6.8898,145.08,145.06,0.0473829]
[1749844604135,0.04955216,145.09,145.06,0.0473829]
[1749844604639,6.93875216,145.09,145.06,6.9377829]
[1749844604935,0.04955216,145.09,145.06,0.0473829]
[1749844605336,0.04955216,145.09,145.05,36.38]
[1749844605539,0.04955216,145.09,145.02,36.36]
[1749844605844,4.7176,145.1,145.02,36.36]
[1749844606036,11.04578819,145.07,144.99,36.36]
[1749844606229,11.04578819,145.05,144.97,433.42]
[1749844606426,0.04399215,145.02,145.0,0.0439435]
[1749844606835,0.04399215,145.02,145.0,6.9372435]
[1749844607239,0.04399215,145.02,145.0,0.0439435]
[1749844607540,6.93649215,145.02,145.0,0.0439435]
[1749844607741,0.04399215,145.02,145.0,0.0439435]
[1749844608038,0.04399215,145.02,145.0,6.9373435]
[1749844608635,6.93649215,145.02,145.0,0.0439435]
[1749844608834,0.04399215,145.02,145.0,0.0439435]
[1749844609735,6.8929,145.01,145.0,0.0439435]
[1749844610444,6.8938,145.0,144.97,43.2547]
[1749844610742,0.04399215,145.02,144.97,36.36]
[1749844611245,0.04399215,145.02,144.98,6.8941]
[1749844611539,0.04399215,145.02,144.98,6.93858517]
[1749844611740,6.8932,145.01,144.98,6.93858517]
[1749844611945,0.04399215,145.02,144.98,0.04448517]
[1749844612236,6.8954,144.96,144.94,36.38]
[1749844612438,11.04578819,145.01,144.91,6.8974]
[1749844612439,11.04578819,144.99,144.91,6.8974]
[1749844612638,11.04578819,144.99,144.9,433.36]
[1749844612940,11.04578819,144.97,144.9,36.38]
[1749844613133,6.8971,144.93,144.9,36.38]
[1749844613343,0.04540323,144.95,144.9,36.38]
[1749844613641,0.04540323,144.95,144.9,43.2781]
[1749844614445,6.8971,144.93,144.9,43.2781]
[1749844614833,11.09119142,144.95,144.87,1.20078672]
[1749844615039,11.09119142,144.95,144.86,36.38]
[1749844615040,11.04578819,144.93,144.86,36.38]
[1749844615242,0.05244621,144.91,144.86,36.38]
[1749844616147,0.05244621,144.91,144.88,6.8988]
[1749844617239,0.05244621,144.91,144.86,36.38]
[1749844617444,4.76234621,144.91,144.86,36.38]
[1749844617943,2.3031,144.9,144.86,36.38]
[1749844618332,6.8991,144.89,144.86,36.38]
[1749844619044,6.8992,144.88,144.86,36.38]
[1749844619245,2.3031,144.9,144.83,433.38]
[1749844619446,0.05189983,144.88,144.83,433.38]
[1749844619834,0.05189983,144.88,144.83,36.4]
[1749844620148,11.09768802,144.88,144.8,37.60136707]
[1749844620447,11.09768802,144.88,144.8,6.9027]
[1749844620448,0.05070163,144.85,144.8,6.9027]
[1749844620644,0.05070163,144.85,144.79,36.4]
[1749844621043,2.44990163,144.85,144.79,36.4]
[1749844621546,2.1934,144.84,144.79,36.4]
[1749844621743,0.05070163,144.85,144.83,11.04578819]
[1749844623150,0.04488811,144.92,144.9,6.94755698]
[1749844623541,0.04488811,144.92,144.9,0.04945698]
[1749844624136,0.04488811,144.92,144.9,6.94735698]
[1749844624341,0.04488811,144.92,144.9,0.04945698]
[1749844624852,6.94238811,144.92,144.9,0.04945698]
[1749844625149,0.04488811,144.92,144.9,0.04945698]
[1749844626151,6.8977,144.91,144.9,0.04945698]
[1749844626454,0.04488811,144.92,144.87,36.4]
[1749844626652,6.8983,144.9,144.87,36.4]
[1749844626854,2.2231,144.91,144.87,36.4]
[1749844627048,2.2231,144.91,144.87,43.2996]
[1749844627249,6.8985,144.9,144.87,43.2996]
[1749844627443,6.8985,144.9,144.84,11.04578819]
[1749844627639,0.04705027,144.88,144.83,36.4]
[1749844627942,2.1904,144.95,144.87,11.04578819]
[1749844628148,2.1904,144.95,144.89,11.04578819]
[1749844628358,6.8971,144.93,144.89,47.44578819]
[1749844628851,0.04696961,144.92,144.9,0.05083965]
[1749844629047,0.04696961,144.92,144.9,6.94893965]
[1749844629250,0.04696961,144.92,144.9,0.05083965]
[1749844629647,6.8977,144.91,144.9,0.05083965]
[1749844629848,0.04696961,144.92,144.9,0.05083965]
[1749844630247,6.94446961,144.92,144.9,0.05083965]
[1749844631057,0.04696961,144.92,144.9,0.05083965]
[1749844631857,6.94456961,144.92,144.9,0.05083965]
[1749844632056,0.04696961,144.92,144.9,0.05083965]
[1749844632255,0.04696961,144.92,144.86,36.4]
[1749844632256,6.8991,144.89,144.86,36.4]
[1749844632753,2.3192,144.91,144.86,36.4]
[1749844632958,6.8996,144.87,144.86,36.4]
[1749844633147,6.8996,144.87,144.82,11.04578819]
[1749844633148,6.8996,144.87,144.83,36.4]
[1749844633453,0.05061495,144.86,144.83,36.4]
[1749844633659,0.05061495,144.86,144.78,0.2883]
[1749844633858,0.05061495,144.86,144.76,490.17792089]
[1749844633859,6.9014,144.84,144.8,6.9025]
[1749844634058,0.04467219,144.83,144.79,36.4]
[1749844634455,6.94647219,144.83,144.79,43.303]
[1749844634651,6.94647219,144.83,144.79,36.4]
[1749844634852,0.04467219,144.83,144.79,36.4]
[1749844635873,0.04467219,144.83,144.76,433.6]
[1749844636161,6.9028,144.81,144.76,433.6]
[1749844636355,0.05136378,144.8,144.76,433.6]
[1749844637157,0.05136378,144.8,144.77,6.904]
[1749844637351,0.05136378,144.8,144.76,433.6]
[1749844637553,0.05136378,144.8,144.76,36.4]
[1749844637952,6.9037,144.79,144.76,36.4]
[1749844638351,6.9037,144.79,144.76,43.3048]
[1749844638753,0.05136378,144.8,144.76,36.4]
[1749844639054,0.05136378,144.8,144.76,43.3046]
[1749844639654,0.05136378,144.8,144.76,36.4]
[1749844640257,6.9039,144.78,144.76,36.4]
[1749844640564,0.05136378,144.8,144.76,43.3048]
[1749844641266,0.05136378,144.8,144.77,6.9043]
[1749844641464,0.05136378,144.8,144.76,36.4]
[1749844641761,0.05136378,144.8,144.79,6.9034]
[1749844645671,0.05136378,144.8,144.78,6.9038]
[1749844645870,0.05136378,144.8,144.77,11.07975378]
[1749844646172,2.1796,144.87,144.82,6.9016]
[1749844646766,2.1796,144.87,144.81,54.40195378]
[1749844646961,2.1796,144.87,144.81,36.42]
[1749844647267,6.901,144.84,144.83,0.05297136]
[1749844647662,6.901,144.84,144.77,0.1015]
[1749844647663,11.12729335,144.85,144.78,36.42]
[1749844647971,11.12729335,144.85,144.77,43.324]
[1749844648164,11.07975378,144.85,144.77,36.42]
[1749844648366,6.9032,144.8,144.77,43.3243]
[1749844648759,6.95631046,144.8,144.77,43.3243]
[1749844649073,6.95631046,144.8,144.78,6.9039]
[1749844649271,0.05311046,144.8,144.78,6.9039]
[1749844649974,0.05311046,144.8,144.79,6.9034]
[1749844651366,0.05311046,144.8,144.78,6.9035]
[1749844652273,0.05311046,144.8,144.77,36.42]
[1749844652864,0.05311046,144.8,144.78,6.9036]
[1749844653470,0.05311046,144.8,144.77,36.42]
[1749844654170,0.05311046,144.8,144.78,6.9039]
[1749844655172,0.05311046,144.8,144.79,6.9034]
[1749844657669,0.05311046,144.8,144.78,6.9039]
[1749844657873,0.05311046,144.8,144.77,36.42]
[1749844658266,0.05311046,144.8,144.79,6.9034]
[1749844658970,0.05311046,144.8,144.78,6.9038]
[1749844659377,6.9037,144.79,144.77,36.42]
[1749844659569,0.05311046,144.8,144.77,36.42]
[1749844659971,6.95641046,144.8,144.77,43.3244]
[1749844660680,0.05311046,144.8,144.77,36.42]
[1749844661275,0.05311046,144.8,144.79,6.9034]
[1749844662479,6.9023,144.82,144.77,36.42]
[1749844662480,6.9012,144.84,144.81,6.9023]
[1749844662785,2.2769,144.88,144.81,47.61975378]
[1749844662977,4.5868,144.93,144.85,11.07975378]
[1749844663177,5.43213971,144.92,144.87,11.07975378]
[1749844663380,6.8981,144.91,144.88,36.54]
[1749844663589,6.94557326,144.91,144.88,36.58890274]
[1749844664277,0.04747326,144.91,144.88,43.48790274]
[1749844664684,0.04747326,144.91,144.88,36.58890274]
[1749844666487,6.94557326,144.91,144.88,36.58890274]
[1749844667584,0.04747326,144.91,144.88,36.58890274]
[1749844667885,0.04747326,144.91,144.88,0.04890274]
[1749844668190,6.8987,144.89,144.88,0.04890274]
[1749844668891,0.04747326,144.91,144.88,0.04890274]
[1749844670782,6.8985,144.9,144.88,0.04890274]
[1749844671584,0.04747326,144.91,144.88,0.04890274]
[1749844671887,0.04747326,144.91,144.89,47.61975378]
[1749844672289,0.04747326,144.91,144.89,36.54]
[1749844672984,0.04747326,144.91,144.89,43.4383]
[1749844674794,0.04747326,144.91,144.89,36.54]
[1749844675492,0.04747326,144.91,144.89,43.4385]
[1749844676497,0.04747326,144.91,144.9,6.8982]
[1749844676794,53.9883794,145.06,144.9,159.07950756]
[1749844676989,6.8953,144.96,144.92,6.8968]
[1749844677199,11.05553956,144.96,144.92,36.52]
[1749844677394,4.7555,144.95,144.89,36.52]
[1749844677588,0.04371729,144.93,144.91,0.04489241]
[1749844677795,11.05553956,144.94,144.86,36.52]
[1749844677991,6.8984,144.9,144.86,43.4197]
[1749844678190,11.05553956,144.94,144.86,36.52]
[1749844678701,6.8986,144.9,144.89,0.04894688]